Workbook

Sheet Instructions
C2: Food Waste Calculator
C4: Instructions
C5: This Food Waste Calculator will help you to determine the key parameters
C6: in deciding the options to handle Food Waste in your business. To start
C7: you need to go to the sheet called Calculator Questions and the macro
C8: buttons will lead you through a series of interactive questions to assemble
C9: the information to make a decision on the various options available to you. | L9: This project was funded through the Victorian Government's
C10: The first section is the questions to ascertain the amount of food waste, cost | L10: Metropolitan Organics Strategy Fund
C11: of food waste and method of disposal. The second section looks at the various
C12: alternatives to process this food waste.
L13: Version No: | M13: 2
L14: Version Date: | M14: 2016-12-16
C15: To start the Food Waste Calculator, simply push this macro button below.
C16: This file contains macros so make sure you have enabled macros as the file
C17: loads. If you haven't, do so now. If your not sure how to: | I17: Press for HELP
C21: Warning: If you have used this Food Waste Calculator before it will erase
C22: the old information to allow a new set of data to be entered.
C24: If you want to start again retaining the original data but step through again,
C25: then simply go to the sheet called Calculator Questions and press the 1st
C26: Next button.
C28: If you damage the food Waste Calculator then simply download another
C29: copy.
C35: If the macro buttons don't work | F35: Press for HELP
B62: Help if the Macro buttons don't work.
B63: 1. Macros not enabled
B64: If the macro button does not work then macros are not enabled. When you open
B65: the file, provided Excel is setup to allow macros to work, you should see a message
B66: asking you to enable the macros. Depending on your version of Excel it will either be
B67: a dialog box in the middle of the screen (Excel 2007) or a message above where the
B68: column headings are and below the Icon ribbon (Excel version 2010 onwards).
B69: Press enable to allow the macros to work.
B71: 1. Enabling macros doesn't appear.
B72: If neither of these appear then it is possible the macros are disabled completely.
B73: To check this and alter the security surrounding macros in Excel Options. To access
B74: Excel options.
B75: In Excel version 2007 select the Microsoft Option Button | H75: and at the bottom
B76: of the dialog box select Excel Options.
B77: In Excel version 2010 or later select File and then on the left hand side select Options.
B79: Step 1: Select Trust Center from the left hand side of the dialog box
B80: Step 2: Select a button called Trust Centre Settings in the dialog box
B81: Step 3: Select Macro Settings on the left hand side
B82: Step 4: Choose disable all macros with notification. This gives the highest security
B83: while allowing macros to work. You therefore determine if you want to load a
B84: macro. Only do this from a trusted file.
B85: Step 5. Press OK to finalise twice to get out of the Dialog box
B86: Step 6: Log out of Excel to allow the settings to take affect and log back in again.
C89: Return to the Top

Sheet Calculator Questions
B1: Food Waste Calculator Questions
B2: 1st Section - Answering the basic questions below will assist you in determining what method
B3: is appropriate to dispose of your food waste. It captures the amount of food waste and cost to
B4: dispose of it. Fill in any blue numbers.
H5: Response | N5: YES | O5: NO
A6: Q. 1 | B6: Do you generate Food Waste in your organisation? | M6: Q1 | N6: If Yes to Q2 | O6: Stops
A8: No Response | B8: As you do not generate any food waste in your organisation this calculator does not apply to you. You do not need to proceed any further.
A10: Q. 3 | M10: Q2 | N10: If Yes to Q3 | O10: Stops
A12: No Response | B12: As you do not want to remove the food waste from landfill this calculator does not apply to you. You do not need to proceed any further.
A13: Q4
B14: Do you currently separate the Food Waste from the General Waste? | M14: Q3 | N14: If Yes to Q4 | O14: If No to Q20
M15: Separates Food Waste
B16: Do you know the weight of the Food Waste in Kgs per week? | M16: Q4 | N16: If Yes to Q5 | O16: If No to Q12
B18: Please enter the weight of the Food Waste in Kgs in a typical week | I18: Kgs | M18: Q5 | N18: When entered goto Q6
B20: How is the food waste currently disposed of? | M20: Q6 | N20: If Contractor to Q7
N21: If General Waste Q7
N22: If Treated on site Q8
B23: Known Food Waste Weight- We now need to calculate the cost to dispose of this Food Waste. Fill out the table below. | M23: Q7 | N23: When updated goto Q8
H24: Bins per mth
D25: No of bins of Food Waste emptied per month | H25: 0 | N25: }
D26: Average Size of bins | H26: 80 litres | N26: }
D27: Number on bins hired on site | H27: 0
D28: Cost per bin per collection | H28: 0 | N28: }
D29: Per Bin rental per mth | H29: 0 | N29: } Know Weight
D30: On average how full is the bins? | H30: 0 | N30: }
D31: Total cost of Food Waste per Month | H31: =(+H25*H28)+(H27*Q7_Input4) -> 0 | I31: Calculated | N31: }
D32: Total cost of Food Waste per year | H32: =+H31*12 -> 0 | I32: Calculated | N32: }
D33: Average Weight of Food Waste per week | H33: =+Q5_Answer -> 0 | I33: Calculated | N33: }
D34: Food Waste in kgs per month | H34: =+Q5_Answer*52/12 -> 0 | I34: Calculated | N34: }
D35: Food Waste in kgs per year | H35: =+H33*52 -> 0 | I35: Calculated | N35: }
D36: Food Waste in Cubic Metres per month | H36: =+H34/100*0.25 -> 0 | I36: Calculated | N36: }
D37: Food Waste in Cubic Metres per year | H37: =+H36*12 -> 0 | I37: Calculated | N37: }
B40: Identify the type of food waste? | M40: Q8 | N40: When entered goto Final
B44: Treated on Site - Explain how you currently treat the Food Waste on site
M45: Q9 | N45: Got to Finish
M63: Separates Food Waste - Doesn't know Kgs
B64: Separates Food Waste but doesn't know weight - Enter the Number of bins, cost and how full the bins are on average. | M64: Q12 | N64: When entered goto Q13
B65: You will need your monthly waste bill at this point to fill in the table below.
B66: Key into the blue text cells. | H66: Bins per mth
D67: No of bins of Food Waste emptied per month | H67: 0 | N67: }
D68: Size of bins | H68: 80 litres | N68: }
D69: Number on bins hired on site | H69: 0
D70: Cost per bin per collection | H70: 0 | N70: } Doesn't know weight
D71: Per Bin rental per mth | H71: 0 | N71: }
D72: On average how full is the bins? | H72: 0 | N72: }
D73: Total cost of Food Waste per Month | H73: =(+H67*H70)+(H69*Q12_Input3) -> 0 | I73: Calculation | N73: }
D74: Total cost of Food Waste per year | H74: =+Q12_Response*12 -> 0 | I74: Calculation | N74: }
D75: Food Waste in kgs per month | H75: =+H77*400 -> 0 | I75: Calculation
D76: Food Waste in kgs per year | H76: =+H75*12 -> 0 | I76: Calculation
D77: Food Waste in Cubic Metres per month | H77: =VLOOKUP(H68,Data!$B$5:$D$15,3,FALSE)*H72*H67 -> 0 | I77: Calculation
D78: Food Waste in Cubic Metres per year | H78: =+H77*12 -> 0 | I78: Calculation
B82: Identify the type of food waste? | M82: Q13 | N82: When entered goto Final
B86: How is the food waste currently disposed of? | M86: Q14 | N86: Goto Finish
B101: Disposed of in General Waste - We now need to calculate the cost to dispose of this Food Waste. | M101: Starts at row 101
B102: You will need your monthly waste bill at this point to fill in the table below.
H103: Bins per mth
D104: Average number of bins emptied per typical month | H104: 0
D105: Average Size of bins | H105: 80 litres
D106: Number on bins hired on site | H106: 0
D107: Cost per bin per collection (inc any carbon price) | H107: 0
D108: Per Bin rental per mth | H108: 0
D109: Total cost of bill for General Waste | H109: =(+H104*H107)+(H106*Q20_input3) -> 0 | I109: Calculation
D110: Estimate % of Food Waste in general waste by volume | H110: 0 | I110: **
D111: On average how full is the bins? | H111: 0
D112: Theoretical reduction in number of bins collected if we remove the Food Waste from General Waste | H112: =ROUNDUP(+H104*H110,0) -> 0 | I112: Calculation
D113: Total cost of Food Waste per Month | H113: =+Q20_Response*Q20_Input4 -> 0 | I113: Calculation
D114: Total cost of Food Waste per year | H114: =+H113*12 -> 0 | I114: Calculation
D115: Food Waste in kgs per month | H115: =+H117*400 -> 0 | I115: Calculation
D116: Food Waste in kgs per year | H116: =+H115*12 -> 0 | I116: Calculation
D117: Food Waste in Cubic Metres per month | H117: =VLOOKUP(H105,Data!$B$5:$D$15,3,FALSE)*H110*H104*H111 -> 0 | I117: Calculation
D118: Food Waste in Cubic Metres per year | H118: =+H117*12 -> 0 | I118: Calculation
D119: ** Refer the Guide for guidance on this by industry
M120: Q20
B122: Identify the type of food waste? | M122: Q21
B126: How is the food waste currently disposed of? | M126: Q22
A170: Q 11
C302: Table of key data | G302: Week | H302: Per year
C303: Food Waste in kgs | G303: =IF(Q4_Answer="Yes",$H$303/52,IF(Q4_Answer="No",$H$303/52,IF(Q3_Answer="No",$H$303/52,"No Answer"))) -> No Answer | H303: =IF(Q4_Answer="Yes",Q5_Answer*52,IF(Q4_Answer="No",H76,IF(Q3_Answer="No",H116,"No Answer"))) -> No Answer | I303: Kgs
C304: Food Waste in cubic metres | G304: =IF(Q4_Answer="Yes",H304/52,IF(Q4_Answer="No",H304/52,IF(Q3_Answer="No",H304/52,"No Answer"))) -> No Answer | H304: =IF(Q4_Answer="Yes",H37,IF(Q4_Answer="No",H78,IF(Q3_Answer="No",H118,"""NoAnswer"))) -> "NoAnswer | I304: m3
C305: Current Cost of disposing of Food Waste | G305: =IF(Q4_Answer="Yes",H305/52,IF(Q4_Answer="No",H305/52,IF(Q3_Answer="No",H305/52,"No Answer"))) -> No Answer | H305: =IF(Q4_Answer="Yes",H32,IF(Q4_Answer="No",H74,IF(Q3_Answer="No",H114,"No Answer"))) -> No Answer
C306: How Food waste currently disposed of: | G306: =IF(Q6_Answer<>"",Q6_Answer,IF(Q14_Answer<>"",Q14_Answer,IF(Q22_Answer<>"",Q22_Answer,"No Selection"))) -> No Selection
C307: Type of Food Waste | G307: =IF(Q8_Answer<>"",Q8_Answer,IF(Q13_Answer<>"",Q13_Answer,IF(Q21_Answer<>"",Q21_Answer,"No Selection"))) -> No Selection
C308: Potential CO2 savings from removing from landfill | G308: =(+H303*0.17)/1000 ->  | H308: Tonnes | I308: p.a.
C309: Estimate of number of bins used for food waste | G309: =IF(Q4_Answer="Yes",Q7_Input1,IF(Q4_Answer="No",Q12_Input1,IF(Q3_Answer="No",$H112,"No Answer"))) -> No Answer | H309: Bins per month
B311: Removing Food Waste from General Waste will ALSO have the following significant benefits:
B312: Less smell, free up space where bins are kept, likely less noise on bins being emptied, quicker collection,
B313: or less frequent collections. Less time associated with cleaning bins plus all the environmental savings.
F316: OR
B322: 2nd Section - Options available.
C323: Answering a couple of futher questions plus the answes already given will help to determine what
C324: processing method is right for you.

Sheet Sheet1 (hidden)
F4: NO - hide from rows 10 down
B7: Yes
F9: NO - hide from rows 14 down

Sheet Processing Alternatives (hidden)
A1: Food Waste Processing Alternatives
A3: There are a number of processing alternatives as follows to process your Food Waste.
A4: Currently you generate this amount of Food Waste --> | F4: =+'Calculator Questions'!G303 -> No Answer | G4: kgs per week
E5: --> | F5: =+F4/7 ->  | G5: kgs per day
B7: Options for processing Food Waste | F7: Space Required on site | H7: Required Staff Hrs per day | J7: Minimum Capital spend required | K7: Space Available | L7: Staff Available | M7: Capital Spend | N7: Overall Evaluation
B8: Option 1 - Off Site Use (eg Food Charity) | F8: None | H8: 0 | J8: 0 | K8: =IF(Option_Q1="","","OK") ->  | L8: =IF(option_Q2="","","OK") ->  | M8: =IF(Option_Q3="","","OK") ->  | N8: =IF(OR(K8="",L8="",M8=""),"",IF(AND(K8="OK",L8="OK",M8="OK"),"OK","NO")) -> 
B9: Option 2 - Off Site Processing | F9: None | H9: 0 | J9: 0 | K9: =IF(Option_Q1="","","OK") ->  | L9: =IF(option_Q2="","","OK") ->  | M9: =IF(Option_Q3="","","OK") ->  | N9: =IF(OR(K9="",L9="",M9=""),"",IF(AND(K9="OK",L9="OK",M9="OK"),"OK","NO")) -> 
B10: Option 3 - Worm farm (on site) | F10: =IF($F$5<60,ROUNDUP(+$F5/2,0)*'Option3-Worm Farm'!$I21,ROUNDUP($F5/60,0)*'Option3-Worm Farm'!$I22) ->  | G10: m2 | H10: =IF($F$5<60,ROUNDUP(+$F5/2,0)*'Option3-Worm Farm'!$H21,ROUNDUP($F5/60,0)*'Option3-Worm Farm'!$H22)/60 ->  | I10: hrs | J10: =+'Option3-Worm Farm'!G66 ->  | K10: =IF(Option_Q1="","",IF(Option_Q1>=$F10,"OK","No")) ->  | L10: =IF(option_Q2="","",IF(option_Q2>=$H10,"OK","No")) ->  | M10: =IF(Option_Q3="","",IF(Option_Q3>=$J10,"OK","No")) -> 
B11: Option 4 - Dehydration Unit | F11: =VLOOKUP('Option4-Dehydration'!$D27,'Option4-Dehydration'!$A$20:$I$24,9) ->  | G11: m2 | H11: =IF('Option4-Dehydration'!G16<0.5*VLOOKUP('Option4-Dehydration'!$D27,'Option4-Dehydration'!$A$20:$I$24,1),VLOOKUP('Option4-Dehydration'!$D27,'Option4-Dehydration'!$A$20:$I$24,8)/60*1,VLOOKUP('Option4-Dehydration'!$D27,'Option4-Dehydration'!$A$20:$I$24,8)/60*2) ->  | I11: hrs | J11: =+'Option4-Dehydration'!G66 ->  | K11: =IF(Option_Q1="","",IF(Option_Q1>=F11,"OK","No")) ->  | L11: =IF(option_Q2="","",IF(option_Q2>=$H11,"OK","No")) ->  | M11: =IF(Option_Q3="","",IF(Option_Q3>=$J11,"OK","No")) -> 
B12: Option 5 - In Vessel composting | F12: =VLOOKUP('Option5-In Vessel composting'!D24,'Option5-In Vessel composting'!$A$20:$I$21,8,FALSE) ->  | G12: m2 | H12: =VLOOKUP('Option5-In Vessel composting'!D24,'Option5-In Vessel composting'!$A$20:$H$21,7,FALSE)/60 ->  | I12: hrs | J12: =+'Option5-In Vessel composting'!G63 ->  | K12: =IF(Option_Q1="","",IF(Option_Q1>=F12,"OK","No")) ->  | L12: =IF(option_Q2="","",IF(option_Q2>=$H12,"OK","No")) ->  | M12: =IF(Option_Q3="","",IF(Option_Q3>=$J12,"OK","No")) -> 
B13: Option 6 - Anaerobic digester | F13: =VLOOKUP('Option6-Anaerobic digester'!D24,'Option6-Anaerobic digester'!A20:H21,8,FALSE) ->  | G13: m2 | H13: =VLOOKUP('Option6-Anaerobic digester'!D24,'Option6-Anaerobic digester'!$A$20:$H$21,7,FALSE) ->  | I13: hrs | J13: =+'Option6-Anaerobic digester'!G64 ->  | K13: =IF(Option_Q1="","",IF(Option_Q1>=F13,"OK","No")) ->  | L13: =IF(option_Q2="","",IF(option_Q2>=$H13,"OK","No")) ->  | M13: =IF(Option_Q3="","",IF(Option_Q3>=$J13,"OK","No")) -> 
A15: Some of these may not apply so we are going to eliminate the ones that don't
A16: apply to you based on your answers to the previous questions about Food Waste
A17: and the couple of simple questions below:
A20: How much space do you have available for onsite processing?
A21: If none then enter 0. | G21: m2
A25: How many hours are you prepared to spend for onsite processing per day?
A26: You may have a limitation on the hours that your existing staff can handle for on site
A27: processing. Therefore this question can exclude options where staff are already
A28: fully engaged in other activities.
G29: Hrs
A32: What dollar limit to you have on Capital spend for onsite processing equipment?
A33: If no predetermined limit then enter a number higher than the minimum capital spend
A34: of the most expensive equipment. This question attempts to eliminate options with
A35: very high capital expenditure that you wouldn't possibly consider simply because of cost.
A41: Option 1 - Off Site Use | G41: Go to Option Details
A42: e.g. Food charity
B43: Benefits: | C43: No capital expenditure
C44: Good food not wasted but given to someone in need
C45: Great social and environment benefits
B47: Cons: | C47: Will take only food donations for human consumption not food scraps
C48: May need to store food until sufficient volume for pickup
C49: Will need to store the food in correct temperature zone - eg refrigeration
A51: Option 2 - Off Site Processing | G51: Go to Option Details
A52: e.g. Go to commercial operators (recycling, worm farm, etc.)
B53: Benefits: | C53: No capital expenditure
C54: Food Waste removed from landfill
C55: Doesn't require as much space as Options 3 to 6
C56: Simple solution to get good environmental benefits
B58: Cons: | C58: Will need to separate food waste
C59: Will cost to dispose of food waste, but it costs to dispose of
C60: in landfill so unlikely to cost much more.
A62: Option 3 - Worm farm (on site) | G62: Go to Option Details
B63: Benefits: | C63: Organic Material available on site for gardens, etc from the system
C64: Relatively low cost
C65: Relatively easy to operate, like a home worm farm
B67: Cons: | C67: Will need to separate food waste from general waste
C68: Space will be required for worm farm units
C69: Small capital cost
A72: Option 4 - Dehydration Unit | G72: Go to Option Details
B73: Benefits: | C73: Food Waste removed from landfill
C74: Volume of waste reduced
C75: End product use is composte for gardens
B77: Cons: | C77: Will need to separate food waste from general waste
C78: Space will be required for unit
C79: Some capital cost - approximately per unit
A81: Option 5 - In Vessel composting | G81: Go to Option Details
B82: Benefits: | C82: Food Waste removed from landfill
C83: Volume of waste reduced
C84: End product use is generally compost
B86: Cons: | C86: Will need to separate food waste from general waste
C87: Space will be required for unit
C88: Some capital cost
A90: Option 6 - Anaerobic digester | G90: Go to Option Details
B91: Benefits: | C91: Food Waste removed from landfill
C92: Volume of waste reduced
C93: End product use is compost or energy generation
B95: Cons: | C95: Will need to separate food waste from general waste
C96: Large Space will be required for unit
C97: Large capital cost
A100: Important Note:
A101: The evaluation of these options are mutually exclusive. You should take into account that
A102: two or more options might be the desirable approach. For example the following could be
A103: a viable solution.
A104: You might have food waste of say 70 kgs per day, but 15kgs is fit for human consumption and
A105: the rest food scraps.
A106: Therefore you might invoke the following options: | G106: Per day
A107: Option 1 (food charity off site use) | G107: 15 | H107: Kgs
A108: Option 4 (dehydration unit smallest size as next size too big) | G108: 50 | H108: Kgs
A109: Option 2 (worm farm -3 units for remaining waste) | G109: 5 | H109: Kgs
G110: =SUM(G107:G109) -> 70 | H110: Kgs
A111: Note: All options are already setup to print off, including this page. Simply select Print on the
A112: Excel menu.

Sheet Option1-off site use (hidden)
A1: Option 1: Off Site Use
A2: e.g. Food Charity donation - Edible food for human consumption
A4: This option requires the separation of good quality edible food for human consumption.
A5: This alternative has great social and environmental gains as you are not wasting good
A6: food. See the accompanying Guide which provides some practical examples of how you
A7: could undertake this.
A10: To make an informed decision the Calculator Questions produced the following
A11: information to assist you:
A13: Estimated Food Waste Produced per month in kgs | G13: =+'Calculator Questions'!$H$303/12 ->  | H13: kgs
A14: Estimated Food Waste Produced per month in cubic metres | G14: =+'Calculator Questions'!$H$304/12 ->  | H14: cubic metres
A15: Estimated cost going to landfill per month for food waste | G15: =+'Calculator Questions'!$H$305/12 -> 
A17: Parentage of your Food Waste that is good quality edible food
A18: for donation to charities | G18: 0.4 | H18: You enter
A19: All items in blue you enter your estimate. The black numbers are formulas.
A21: Note some large charities have a minimum of 50kg pick up policy.
A22: Refer to the accompanying Guide for more information on this.
A23: Requirements: | E23: Minimum pickups in kgs | F23: Your daily food Waste kgs
A24: - Minimum Food Pick | E24: 50 kgs | F24: =(G13*G18)/30 ->  | G24: =IF(F24>E24,"You could have daily pickups","You will need to store the food between pickups") -> 
A26: Benefits: | B26: No capital expenditure
B27: Good food not wasted but given to someone in need
B28: Great social and environment benefits
A30: Cons: | B30: Will take only food donations for human consumption not food scraps
B31: May need to store food until sufficient volume for pickup
B32: Will need to store the food in correct temperature zone - eg refrigeration
A34: Refer to the accompanying Guide for a full analysis of this option.
A36: Template to Calculate Impact
A37: All items in blue you enter your estimate. The rest are formulas.
G38: PER MONTH
A39: 1. Operational Costs & Benefits | G39: Amount
A40: - Transport to deliver to charities/ Pick ups normally free | G40: 0 | H40: You enter
A41: - Your costs to separate the quality food and pack it per month
D42: Hours | E42: Rate per hr
D43: 2 | E43: 25 | G43: =+D43*E43 -> 50 | H43: You enter
E44: Monthly cost | G44: =SUM(G40:G43) -> 50
B45: less Savings from going to landfill (refer cell G17) | G45: =-G15*G18 -> 
E46: Net cost / (benefit) per month | G46: =+G44+G45 -> 
A48: 2. Capital cost (once off)
A49: - Unlikely but could be additional refrigerated storage | G49: 0
G51: =+D51*E51 -> 0
A55: 3. Cashflow Impact per year
C57: Yr 1 | D57: Yr2 | E57: Yr3 | F57: Yr 4 | G57: Yr 5 | H57: Total
A58: Initial Capital cost | C58: =+G51+0.01 -> 0.01
A59: Operation costs / (benefits) | C59: =+G46 ->  | D59: =+C59*(1+$C$61) ->  | E59: =+D59*(1+$C$61) -> 
A60: Cashflow Favourable / (Unfavourable) | C60: =-C58-C59 ->  | D60: =-D58-D59 ->  | H60: =SUM(C60:G60) -> 
A61: Inflation rate | C61: 0.03
A63: Return on Investment: | C63: =IF(ISERROR(IRR(C60:G60,10%))=TRUE,"Great Return as no cost!",IRR(C60:G60,10%)) -> Great Return as no cost!
A64: p.a.
A66: Removing Food Waste from General Waste will ALSO have the following benefits that
A67: haven't been quantifiable.
A68: Less smell, free up space where bins are kept, less bins means less noise on bins being
A69: emptied, quicker collection, or less frequent collections. Less time associated with
A70: cleaning bins plus all the environmental savings.

Sheet Option2-Offsite Treatment (hidden)
A1: Option 2: Off Site Treatment
A2: e.g. Go to commercial operators (composting, worm farm, etc.)
A4: This option requires the separation of food waste from general waste on site and can be
A5: picked up by commercial operators. It allows you to gain good environmental benefits of
A6: eliminating food waste from landfill. The accompanying Guide provides some practical
A7: explanation of how you could undertake this option.
A10: To make an informed decision the Calculator Questions produced the following
A11: information to assist you:
A13: Estimated Food Waste Produced per month in kgs | G13: =+'Calculator Questions'!$H$303/12 ->  | H13: kgs
A14: Estimated Food Waste Produced per month in cubic metres | G14: =+'Calculator Questions'!$H$304/12 ->  | H14: cubic metres
A15: Estimated cost going to landfill per month for food waste | G15: =+'Calculator Questions'!$H$305/12 -> 
A16: Estimated number of bins being used for Food Waste | G16: =+'Calculator Questions'!G309 -> No Answer | H16: bins each mth
A18: Benefits: | B18: No capital expenditure
B19: Food Waste removed from landfill
B20: Doesn't require as much space as Options 3 to 6
B21: Simple solution to get good environmental benefits
A23: Cons: | B23: Will need to separate food waste
B24: Will cost to dispose of food waste, but it costs to dispose of
B25: in landfill so unlikely to cost much more.
A27: Refer to the accompanying Guide for a full analysis of this option.
A29: Template to Calculate Impact
A30: All items in blue you enter your estimate. The black numbers are formulas.
G31: Per Month
A32: 1. Operational Costs & Benefits
A33: - Transport / Pick up cost
C34: Bins on site | D34: No of bins emptied per mth | E34: Rate per bin | F34: Bin Rental | G34: Amount
C35: 2 | D35: =+G16 -> No Answer | E35: 15 | F35: 3 | G35: =(E35*D35)+(C35*F35) -> 
A36: - Your costs to separate the food waste per month
D37: Hours | E37: Rate per hr
D38: 2 | E38: 25 | G38: =+D38*E38 -> 50
E39: Monthly cost | G39: =SUM(G34:G38) -> 
B40: less Savings from going to landfill (refer cell G15) | G40: =-G15 -> 
E41: Net cost / (benefit) per month | G41: =+G39+G40 -> 
A43: 2. Capital cost (once off)
A44: - Should be nil as bins hired | G44: 0
A48: 3. Cashflow Impact per year
C50: Yr 1 | D50: Yr2 | E50: Yr3 | F50: Yr 4 | G50: Yr 5 | H50: Total
A51: Initial Capital cost | C51: =G44 -> 0
A52: Operation costs / (benefits) | C52: =+G41*12 ->  | D52: =+C52*(1+$C$54) ->  | E52: =+D52*(1+$C$54) -> 
A53: Cashflow Favourable / (Unfavourable) | C53: =-C51-C52 ->  | D53: =-D51-D52 ->  | H53: =SUM(C53:G53) -> 
A54: Inflation rate | C54: 0.03
A56: Return on Investment: | C56: =IF(ISERROR(IRR(C53:G53,10%))=TRUE,"No financial return can be calculated as costs exceed benefits",IRR(C53:G53,10%)) -> No financial return can be calculated as costs exceed benefits
A57: p.a.
A59: Removing Food Waste from General Waste will ALSO have the following benefits that
A60: haven't been quantifiable.
A61: Less smell, less frequent collections of general waste, less bins to thoughly clean as all
A62: food waste in less bins. A simple solution at little net cost with all the environmental
A63: savings.

Sheet Option3-Worm Farm (hidden)
A1: Option 3: Worm Farm (on site)
A4: This option still requires the separation of food waste from general waste on site but then
A5: put into the onsite worm farm. It allows you to gain the environmental benefits of eliminating
A6: food waste from landfill but also providing you with usable organic material. Worm farms
A7: range form small home-scale systems to much bigger commercial type systems.
A8: The accompanying Guide provides some practical knowledge of how you could undertake this
A9: and how the system works.
A10: To make an informed decision the Calculator Questions produced the following
A11: information to assist you:
A13: Estimated Food Waste Produced per month in kgs | G13: =+'Calculator Questions'!$H$303/12 ->  | H13: kgs
A14: Estimated Food Waste Produced per month in cubic metres | G14: =+'Calculator Questions'!$H$304/12 ->  | H14: cubic metres
A15: Estimated cost going to landfill per month for food waste | G15: =+'Calculator Questions'!$H$305/12 -> 
A16: Estimated daily Food Waste Produced in kgs | G16: =+G13/30 ->  | H16: kgs
A18: Example of sizes and approximate costs of worm farm systems available are as follows:
A19: The 2kg size is the typical home unit but a number of these can be connected.
A20: Unit Size | B20: Unit weight | C20: Unit Size | E20: Max Daily food waste kgs | F20: Cost | G20: Number of units you require | H20: Labour minutes per day | I20: sq metres floor area
A21: 2 kgs/day | B21: 12kgs | C21: 60cm x 65cm x 95cm | E21: 2 | F21: 395 | G21: =ROUNDUP(+$G$16/E21,0) ->  | H21: 5 | I21: =0.6*0.65 -> 0.39
A22: 60 kgs/day | B22: 150 kgs | C22: 3m x 2m x 2.5m | E22: 60 | F22: 21500 | G22: =ROUNDUP(+$G$16/E22,0) ->  | H22: 20 | I22: =3*2 -> 6
A23: ** Note: costs quoted above are based on 2015 prices at an AUD/USD rate of $0.70
G25: No of Units
A26: - You choose likely system | D26: 2 kgs/day | G26: =IF(ISNA(VLOOKUP(D26,$A$21:$G$22,7,FALSE))=TRUE,0,VLOOKUP(D26,$A$21:$G$22,7,FALSE)) -> 
A29: Benefits: | B29: Organic Material available on site for gardens, etc from the system
B30: Relatively low cost
B31: Relatively easy to operate, like a home worm farm
A34: Cons: | B34: Will need to separate food waste from general waste
B35: Space will be required for worm farm units
B36: Small capital cost = | D36: =VLOOKUP(D26,$A$21:$H$22,6,FALSE)*VLOOKUP(D26,$A$21:$H$22,7,FALSE) -> 
A38: Refer to the accompanying Guide for a full analysis of this option.
A42: Template to Calculate Impact
A43: All items in blue you enter your estimate. The black numbers are formulas.
G44: Per Month
A45: 1. Operational Costs & Benefits
A46: - Your costs to separate the food waste per month
D47: Hours | E47: Rate per hr | G47: Amount
D48: 4 | E48: 25 | G48: =+D48*E48 -> 100
A49: - Your costs to operate/service the worm farms each month
D50: Hours | E50: Rate per hr
D51: =(VLOOKUP(D26,$A$21:$H$22,8,FALSE)*30)/60 -> 2.5 | E51: 25 | G51: =+D51*E51 -> 62.5
B52: Remember it is quite simple to operate
A53: - Your costs, if any, to dispose of the organic material per month **
D54: Hours | E54: Rate per hr
D55: 0 | E55: 25 | G55: =+D55*E55 -> 0
E56: Monthly cost | G56: =SUM(G46:G55) -> 162.5
B57: ** = Staff often take home for their own gardens
B59: less Savings from going to landfill (refer cell G17) | G59: =-G15 -> 
B60: less Savings by using your own organic material on
B61: your own gardens/ or sale proceeds to others | G61: 0
E62: Net cost / (benefit) per month | G62: =SUM(G56:G61) -> 
A64: 2. Capital cost (once off)
E65: no of units | F65: cost per unit | G65: Amount
A66: - Cost of Worm system | E66: =+G26 ->  | F66: =VLOOKUP(D26,$A$21:$G$22,6,FALSE) -> 395 | G66: =+E66*F66 -> 
G67: =SUM(G66:G66) -> 
A69: 3. Cashflow Impact per year
C70: Yr 1 | D70: Yr2 | E70: Yr3 | F70: Yr 4 | G70: Yr 5 | H70: Total
A71: Initial Capital cost | C71: =+D36 -> 
A72: Operation costs / (benefits) | C72: =+G62*12 ->  | D72: =+C72*(1+$C$63) ->  | E72: =+D72*(1+$C$63) -> 
A73: Cashflow Favourable / (Unfavourable) | C73: =-C71-C72 ->  | D73: =-D71-D72 ->  | H73: =SUM(C73:G73) -> 
A74: Inflation rate | C74: 0.03
A76: Return on Investment: | C76: =IF(ISERROR(IRR(C73:G73,10%))=TRUE,"No financial return can be calculated as costs exceed benefits",IRR(C73:G73,10%)) -> No financial return can be calculated as costs exceed benefits
A77: p.a.
A78: Removing Food Waste from General Waste will ALSO have the following benefits that
A79: haven't been quantifiable.
A80: Less smell, free up space where bins are kept, likely less noise on bins being emptied,
A81: quicker collection, or less frequent collections. Less time associated with cleaning bins
A82: plus all the environmental savings.

Sheet Option4-Dehydration (hidden)
A1: Option 4: Dehydration unit
A3: This option still requires the separation of food waste from general waste on site but then
A4: put into a dehydration unit to reduce the weight and size of the waste. You still have to
A5: dispose of the output that is good for composts and gardens. Dehydration units use gas
A6: or electricity and dehydrate the food waste. Typically a reduction of 90% can be achieved.
A7: The accompanying Guide provides some knowledge of how this process works and its
A8: requirements.
A10: To make an informed decision the Calculator Questions produced the following
A11: information to assist you:
A13: Estimated Food Waste Produced per month in kgs | G13: =+'Calculator Questions'!$H$303/12 ->  | H13: kgs
A14: Estimated Food Waste Produced per month in cubic metres | G14: =+'Calculator Questions'!$H$304/12 ->  | H14: cub. metres
A15: Estimated cost going to landfill per month for food waste | G15: =+'Calculator Questions'!$H$305/12 -> 
A16: Estimated daily Food Waste Produced in kgs | G16: =+G13/30 ->  | H16: kgs
A18: There are a variety of sized systems available. Examples are as follows:
A19: Unit Size kgs/ day based on 2 cycles per day | B19: Cycles possible per day | C19: Unit footprint | E19: Max Daily food waste kgs | F19: Capital Cost | G19: Electricity cost per cycle | H19: Labour minutes per cycle | I19: sq metres floor area | N19: kgs of waste | O19: Machine size
A20: 50 | B20: 2 | C20: 65cm x 65cm x 90cm | E20: =+A20 -> 50 | F20: 27000 | G20: 4 | H20: 15 | I20: =0.65*0.65 -> 0.4225 | N20: 0 | O20: 50
A21: 100 | B21: 2 | C21: 95cm x 140cm x 120cm | E21: =+A21 -> 100 | F21: 40000 | G21: 6 | H21: 20 | I21: =0.95*1.4 -> 1.33 | N21: 50 | O21: 50
A22: 400 | B22: 2 | C22: 150cm x 260cm x 180cm | E22: =+A22 -> 400 | F22: 110000 | G22: 24 | H22: 25 | I22: =1.5*2.6 -> 3.9 | N22: 51 | O22: 100
A23: 600 | B23: 2 | C23: 165cm x 260cm x180cm | E23: =+A23 -> 600 | F23: 155000 | G23: 33.75 | H23: 25 | I23: =1.65*2.6 -> 4.29 | N23: 100 | O23: 100
A24: 1200 | B24: 2 | C24: 180cm x 330cm x 220cm | E24: =+A24 -> 1200 | F24: 220000 | G24: 67.5 | H24: 30 | I24: =1.8*3.3 -> 5.94 | N24: 101 | O24: 400
A25: ** Note: costs quoted above are based on 2015 prices at an AUD/USD rate of $0.70 | N25: 400 | O25: 400
N26: 401 | O26: 600
A27: - Your likely system | D27: =VLOOKUP(G16,$N$20:$O$28,2,TRUE) ->  | E27: kgs/ day that can do 2 cycles per day | N27: 600 | O27: 600
A28: Requirements: | N28: 601 | O28: 1200
A29: - 3 Phase power | E29: - Possibly need to flue for air
A30: - Discharge water to trade waste | E30: - Space for unit
A32: Benefits: | B32: Food Waste removed from landfill
B33: Volume of waste reduced
B34: End product use is compost for gardens
A36: Cons: | B36: Will need to separate food waste from general waste
B37: Space will be required for unit
B38: Significant capital cost - approximately per unit = | G38: =VLOOKUP(D27,$A$20:$H$24,6,FALSE) -> 
A40: Refer to the accompanying Guide for a full analysis of this option.
A42: Template to Calculate Impact
A43: All items in blue you enter your estimate. The black numbers are formulas.
G44: Per Month
A45: 1. Operational Costs & Benefits
E46: Cost
A47: - Electricity costs | E47: =VLOOKUP(D$27,$A$20:$H$24,7,FALSE)*2*30 ->  | F47: per Mth | G47: =+E47 -> 
A48: - Your costs to separate the food waste per month
D49: Hours | E49: Rate per hr
D50: 4 | E50: 25 | G50: =+D50*E50 -> 100
A51: - Your Labour costs to operate/service the unit each month
D52: Hours | E52: Rate per hr
D53: =(VLOOKUP(D$27,$A$20:$H$24,8,FALSE)*2*30)/60 ->  | E53: 25 | G53: =+D53*E53 -> 
A54: - Your costs to dispose of the organic material per month
D55: Hours | E55: Rate per hr
D56: 10 | E56: 25 | G56: =+D56*E56 -> 250
B57: Or external cost to dispose per month | G57: 0
E58: Monthly cost | G58: =SUM(G47:G57) -> 
B59: less Savings from going to landfill (refer cell G15) | G59: =-G15 -> 
B60: less Savings by using your own organic material on | H60: enter as
B61: your own gardens/ or sale proceeds to others | G61: 0 | H61: negative
E62: Net cost / (benefit) per month | G62: =SUM(G58:G61) -> 
A64: 2. Capital cost (once off)
F65: Cost | G65: Amount
A66: - Cost of Dehydration unit | F66: =+G38 ->  | G66: =+F66 -> 
A67: - Electricity/gas costs to connect | G67: 2000
A68: - Trade Waste Connection costs | G68: 1000
G69: =SUM(G66:G68) -> 
A71: 3. Cashflow Impact per year
C72: Yr 1 | D72: Yr2 | E72: Yr3 | F72: Yr 4 | G72: Yr 5 | H72: Total
A73: Initial Capital cost | C73: =G69 -> 
A74: Operation costs / (benefits) | C74: =+G62*12 ->  | D74: =+C74*(1+$C$59) ->  | E74: =+D74*(1+$C$59) -> 
A75: Cashflow Favourable / (Unfavourable) | C75: =-C73-C74 ->  | D75: =-D73-D74 ->  | H75: =SUM(C75:G75) -> 
A76: Inflation rate | C76: 0.03
A78: Return on Investment: | C78: =IF(ISERROR(IRR(C75:G75,10%))=TRUE,"No financial return can be calculated as costs exceed benefits",IRR(C75:G75,10%)) -> No financial return can be calculated as costs exceed benefits
A79: p.a.
A80: Removing Food Waste from General Waste will ALSO have the following benefits that
A81: haven't been quantifiable.
A82: Less smell, free up space where bins are kept, likely less noise on bins being emptied,
A83: quicker collection, or less frequent collections. Less time associated with cleaning bins
A84: plus all the environmental savings.

Sheet Option5-In Vessel composting (hidden)
A1: Option 5: In Vessel Composting
A3: This option still requires the separation of food waste from general waste on site but then
A4: put into an In Vessel Composting unit to reduce the weight and size of the waste. The in
A5: vessel composting speeds up the decomposition. You still have to dispose of the output.
A6: Some systems produce compost and others produce a mixture called "soil conditioner".
A7: The accompanying Guide provides some knowledge of how this process works and its
A8: requirements.
A10: To make an informed decision the Calculator Questions produced the following
A11: information to assist you:
A13: Estimated Food Waste Produced per month in kgs | G13: =+'Calculator Questions'!$H$303/12 ->  | H13: kgs
A14: Estimated Food Waste Produced per month in cubic metres | G14: =+'Calculator Questions'!$H$304/12 ->  | H14: cub. metres
A15: Estimated cost going to landfill per month for food waste | G15: =+'Calculator Questions'!$H$305/12 -> 
A16: Estimated daily Food Waste Produced in kgs | G16: =+G13/30 ->  | H16: kgs
A18: There are a variety of sized systems available. Examples are as follows:
A19: Unit Size kg /day | B19: Unit footprint | D19: Power require- ment | E19: Capital Cost | F19: Electricity cost per batch | G19: Labour minutes per batch | H19: sq metres floor area
A20: 85 | B20: 5.5m x 1.3m x 1.8m | D20: 240 volt | E20: 9900 | F20: 1.4 | G20: 35 | H20: =5.5*1.3 -> 7.15 | K20: 0 | L20: =+A20 -> 85
A21: 6400 | B21: 12.8m x 2.1m x 1.8m | D21: 3 Phase | E21: 380000 | F21: 10 | G21: 70 | H21: =12.8*2.1 -> 26.88 | K21: 85 | L21: 85
A22: ** Note: costs quoted above are based on 2015 prices at an AUD/USD rate of $0.70 | K22: 86 | L22: 6400
A24: - Your likely system | D24: =VLOOKUP($G$16,$K$20:$L$22,2,TRUE) ->  | E24: kgs per day
A26: Requirements:
A27: - May require 3 Phase power
A28: - Space for unit
A30: Benefits: | B30: Food Waste removed from landfill
B31: Volume of waste reduced
B32: End product use is generally compost
A34: Cons: | B34: Will need to separate food waste from general waste
B35: Space will be required for unit
B36: Some capital cost - approximately per unit = | F36: =VLOOKUP(D24,$A$20:$G$22,5,FALSE) -> 
A38: Refer to the accompanying Guide for a full analysis of this option.
A40: Template to Calculate Impact
A41: All items in blue you enter your estimate. The black numbers are formulas.
G42: Per Month
A43: 1. Operational Costs & Benefits
E44: Cost | G44: Amount
A45: - Electricity costs | E45: =VLOOKUP(D$24,$A$20:$G$21,6,FALSE)*30 ->  | F45: per Mth | G45: =+E45 -> 
A46: - Your costs to separate the food waste per month
D47: Hours | E47: Rate per hr
D48: 4 | E48: 25 | G48: =+D48*E48 -> 100
A49: - Your Labour costs to operate/service the unit each month
D50: Hours | E50: Rate per hr
D51: =(VLOOKUP($D$24,$A$20:$G$21,7,FALSE)*30)/60 ->  | E51: 25 | G51: =+D51*E51 -> 
A52: - Your costs to dispose of the organic material per month
D53: Hours | E53: Rate per hr
D54: 20 | E54: 25 | G54: =+D54*E54 -> 500
B55: Or external cost to dispose per month | G55: 0
E56: Monthly cost | G56: =SUM(G45:G55) -> 
B57: less Savings from going to landfill (refer cell G15) | G57: =-G15 -> 
B58: less Savings by using your own organic material on | H58: enter as
B59: your own gardens/ or sale proceeds to others | G59: 0 | H59: negative
E60: Net cost / (benefit) per month | G60: =SUM(G56:G59) -> 
A62: 2. Capital cost (once off) | F62: cost | G62: Amount
A63: - Cost of In Vessel unit | F63: =+F36 ->  | G63: =+F63 -> 
A64: - Electricity costs to connect | G64: 2000
A65: - Other earthworks/ flooring | G65: 0
G66: =SUM(G63:G65) -> 
A68: 3. Cashflow Impact per year
C69: Yr 1 | D69: Yr2 | E69: Yr3 | F69: Yr 4 | G69: Yr 5 | H69: Total
A70: Initial Capital cost | C70: =G66 -> 
A71: Operation costs / (benefits) | C71: =+G60*12 ->  | D71: =+C71*(1+$C$57) ->  | E71: =+D71*(1+$C$57) -> 
A72: Cashflow Favourable / (Unfavourable) | C72: =-C70-C71 ->  | D72: =-D70-D71 ->  | H72: =SUM(C72:G72) -> 
A73: Inflation rate | C73: 0.03
A75: Return on Investment: | C75: =IF(ISERROR(IRR(C72:G72,10%))=TRUE,"No financial return can be calculated as costs exceed benefits",IRR(C72:G72,10%)) -> No financial return can be calculated as costs exceed benefits
A76: p.a.
A78: Removing Food Waste from General Waste will ALSO have the following benefits that
A79: haven't been quantifiable.
A80: Less smell, free up space where bins are kept, likely less noise on bins being emptied,
A81: quicker collection, or less frequent collections. Less time associated with cleaning bins
A82: plus all the environmental savings.

Sheet Option6-Anaerobic digester (hidden)
A1: Option 6: Anaerobic Digestion
A3: This option still requires the separation of food waste from general waste on site but then
A4: put into an Anaerobic Digestion unit to reduce the weight and size of the waste. You still
A5: have to dispose of the output. Anaerobic Digestion uses micro organisms to break down
A6: biodegradable material to manage waste and/or generate energy. Generally this process
A7: is only used in very large scale facilities because of the capital cost.
A8: The accompanying Guide provides some knowledge of how this process works and its
A9: requirements.
A10: To make an informed decision the Calculator Questions produced the following
A11: information to assist you:
A13: Estimated Food Waste Produced per month in kgs | G13: =+'Calculator Questions'!$H$303/12 ->  | H13: kgs
A14: Estimated Food Waste Produced per month in cubic metres | G14: =+'Calculator Questions'!$H$304/12 ->  | H14: cub. metres
A15: Estimated cost going to landfill per month for food waste | G15: =+'Calculator Questions'!$H$305/12 -> 
A16: Estimated daily Food Waste Produced in kgs | G16: =+G13/30 ->  | H16: kgs
A18: There are not many examples in Australia. An indication of cost and size is as follows:
A19: Unit Size kg /day | B19: Unit footprint | C19: Power | E19: Capital Cost | F19: Electricity cost per batch | G19: Labour Hours per batch | H19: sq metres floor area
A20: 1000 | B20: 200m2 | C20: Electricity or Gas | E20: 450000 | F20: 5 | G20: 3.8 | H20: 200 | K20: 0 | L20: =+A20 -> 1000
A21: 55000 | B21: 3,500m2 | C21: Electricity or Gas | E21: 5750000 | F21: =200000/365 -> 547.9452055 | G21: 7.6 | H21: 3500 | K21: =+A20 -> 1000 | L21: 1000
K22: 1001 | L22: 55000
A24: - Your likely system | D24: =VLOOKUP(G16,$K$20:$L$22,2,TRUE) ->  | E24: kgs per day
A26: Requirements:
A27: - 3 Phase power or Gas
A28: - Space for unit
A30: Benefits: | B30: Food Waste removed from landfill
B31: Volume of waste reduced
B32: End product use is compost or energy generation
A34: Cons: | B34: Will need to separate food waste from general waste
B35: Large Space will be required for unit
B36: Large capital cost - approximately per unit = | F36: =VLOOKUP(D24,$A$20:$G$22,5,FALSE) -> 
A38: Refer to the accompanying Guide for a full analysis of this option.
A40: Template to Calculate Impact
A41: All items in blue you enter your estimate. The black numbers are formulas.
G42: Per Month
A43: 1. Operational Costs & Benefits
E44: Cost | G44: Amount
A45: - Electricity costs | E45: =VLOOKUP(D$24,$A$20:$G$21,6,FALSE)*30 ->  | F45: per Mth | G45: =+E45 -> 
A46: - Your costs to separate the food waste per month
D47: Hours | E47: Rate per hr
D48: 10 | E48: 25 | G48: =+D48*E48 -> 250
A49: - Your Labour costs to operate/service the unit each month | G49: =VLOOKUP(D$24,$A$20:$G$21,7,FALSE) -> 
D50: Hours | E50: Rate per hr
D51: =VLOOKUP($D$24,$A$20:$G$21,7,FALSE)*30 ->  | E51: 25 | G51: =+D51*E51 -> 
A52: - Your costs to dispose of the organic material per month
D53: Hours | E53: Rate per hr
D54: 20 | E54: 25 | G54: =+D54*E54 -> 500
B55: Or external cost to dispose per month | G55: 0
E56: Monthly cost | G56: =SUM(G45:G55) -> 
B57: less Savings from going to landfill (refer cell G15) | G57: =-G15 -> 
B58: less Savings by using your own organic material on
B59: your own gardens/ or sale proceeds to others | G59: 0 | H59: enter as
B60: less Electricity generation savings | G60: 0 | H60: negatives
E61: Net cost / (benefit) per month | G61: =SUM(G56:G60) -> 
A63: 2. Capital cost (once off) | G63: Amount
A64: - Cost of Dehydration units | F64: =+F36 ->  | G64: =+F64 -> 
A65: - Electricity costs to connect | G65: 2000
G67: =SUM(G64:G66) -> 
A68: 3. Cashflow Impact per year
C69: Yr 1 | D69: Yr2 | E69: Yr3 | F69: Yr 4 | G69: Yr 5 | H69: Total
A70: Initial Capital cost | C70: =G67 -> 
A71: Operation costs / (benefits) | C71: =+G61*12 ->  | D71: =+C71*(1+$C$57) ->  | E71: =+D71*(1+$C$57) -> 
A72: Cashflow Favourable / (Unfavourable) | C72: =-C70-C71 ->  | D72: =-D70-D71 ->  | H72: =SUM(C72:G72) -> 
A73: Inflation rate | C73: 0.03
A75: Return on Investment: | C75: =IF(ISERROR(IRR(C72:G72,10%))=TRUE,"No financial return can be calculated as costs exceed benefits",IRR(C72:G72,10%)) -> No financial return can be calculated as costs exceed benefits
A76: p.a.
A78: Removing Food Waste from General Waste will ALSO have the following benefits that
A79: haven't been quantifiable.
A80: Less smell, free up space where bins are kept, likely less noise on bins being emptied,
A81: quicker collection, or less frequent collections. Less time associated with cleaning bins
A82: plus all the environmental savings.

Sheet Data (hidden)
A1: Data Required
A4: Q11 Bin Sizes
B5: Bin Size | C5: Litres | D5: Cubic Metres
B6: 80 litres | C6: 80 | D6: =+C6*0.001 -> 0.08
B7: 120 litres | C7: 120 | D7: =+C7*0.001 -> 0.12
B8: 240 litres | C8: 240 | D8: 0.24
B9: 660 litres | C9: 660 | D9: 0.66
B10: Front lift 1.5m3 | C10: 1500 | D10: 1.5
B11: Front lift 3.0m3 | C11: 3000 | D11: 3
B12: Front Lift 4.5m3 | C12: 4500 | D12: 4.5
B16: 1 litre = 0.001 cubic metres
B19: Food waste | C19: 1m3 = 400kg
C20: 0.25m3 = 100kg
B23: Food Waste Types
B24: Food scraps from plates
B25: Vegetable peelings
B26: Fruit & Vegetables
B27: Dense food scraps
B28: All of the above
